[Event "USA-ch Juniors Open 2019"]
[Site "Saint Louis"]
[Date "2019.07.17"]
[Round "6.3"]
[White "Checa, Nicolas"]
[Black "Liang, Awonder"]
[Result "1/2-1/2"]
[ECO "A80"]
[WhiteElo "2506"]
[BlackElo "2592"]
[Annotator "ChessBase"]
[PlyCount "60"]
[EventDate "2019.07.09"]
[EventType "tourn"]
[EventCountry "USA"]
[SourceTitle "playchess.com"]
[Source "ChessBase"]
[SourceQuality "1"]
[TimeControl "40/5400+30:1800+30"]

1. d4 {[%emt 0:00:00]} f5 {[%emt 0:00:00]} 2. Nc3 {[%emt 0:01:14]} Nf6 {[%emt 0:00:00]} 3. Bg5 {[%emt 0:00:09]} d5 {[%emt 0:00:00]} 4. e3 {[%emt 0:04:23]} e6 {[%emt 0:00:49]} 5. Nf3 {[%emt 0:03:08]} h6 {[%emt 0:13:56]} 6. Bf4 {[%emt 0:09:59]} g5 {[%emt 0:03:48]} 7. Bg3 {[%emt 0:00:17]} Bg7 {[%emt 0:02:16]} 8. Nb5 {[%emt 0:05:01]} Na6 {[%emt 0:00:09]} 9. c4 {[%emt 0:00:11]} O-O {[%emt 0:00:08]} 10. Bd3 {[%emt 0:05:48]} c6 {[%emt 0:06:30]} 11. Nc3 {[%emt 0:00:22]} Nc7 {[%emt 0:04:03]} 12. O-O {[%emt 0:04:54]} Nce8 {[%emt 0:04:57]} 13. Qc2 {[%emt 0:06:10]} Nd6 {[%emt 0:05:43]} 14. cxd5 {[%emt 0:01:35]} cxd5 {[%emt 0:00:06]} 15. Nb5 {[%emt 0:06:38]} Nxb5 {[%emt 0:08:29]} 16. Bxb5 {[%emt 0:00:06]} Bd7 {[%emt 0:00:32]} 17. Bd3 {[%emt 0:03:21]} Qb6 {[%emt 0:09:10]} 18. Bc7 {[%emt 0:03:07]} Qb4 {[%emt 0:00:06]} 19. a3 {[%emt 0:00:22]} Qe7 {[%emt 0:00:44]} 20. Rfc1 {[%emt 0:05:30]} Rfc8 {[%emt 0:02:29]} 21. Qd1 {[%emt 0:03:30]} Ba4 {[%emt 0:03:01]} 22. Qxa4 {[%emt 0:00:29]} Rxc7 {[%emt 0:00:05]} 23. Rc2 {[%emt 0:00:33]} a6 {[%emt 0:01:44]} 24. Rac1 {[%emt 0:00:36]} Rac8 {[%emt 0:00:06]} 25. Ne5 {[%emt 0:02:17]} Rxc2 {[%emt 0:10:18]} 26. Rxc2 {[%emt 0:00:14]} Rxc2 {[%emt 0:00:29]} 27. Qxc2 {[%emt 0:00:02]} Qd8 {[%emt 0:00:17]} 28. g3 {[%emt 0:04:15]} Nd7 {[%emt 0:02:24]} 29. Nf3 {[%emt 0:02:24]} Bf8 {[%emt 0:01:25]} 30. Ne5 {[%emt 0:03:36]} Nxe5 {[%emt 0:06:07]} 1/2-1/2

[Event "USA-ch Juniors Open 2019"]
[Site "Saint Louis"]
[Date "2019.07.17"]
[Round "6.4"]
[White "Jacobson, Brandon"]
[Black "Hilby, Craig"]
[Result "1/2-1/2"]
[ECO "A00"]
[WhiteElo "2456"]
[BlackElo "2433"]
[Annotator "ChessBase"]
[PlyCount "74"]
[EventDate "2019.07.09"]
[EventType "tourn"]
[EventCountry "USA"]
[SourceTitle "playchess.com"]
[Source "ChessBase"]
[SourceQuality "1"]
[TimeControl "40/5400+30:1800+30"]

1. b4 {[%emt 0:07:12]} c6 {[%emt 0:01:30]} 2. Bb2 {[%emt 0:00:15]} Qb6 {[%emt 0:02:50]} 3. a3 {[%emt 0:00:42]} a5 {[%emt 0:01:34]} 4. c4 {[%emt 0:00:31]} axb4 {[%emt 0:16:27]} 5. c5 {[%emt 0:00:21]} Qc7 {[%emt 0:05:32]} 6. axb4 {[%emt 0:00:08]} Rxa1 {[%emt 0:00:06]} 7. Bxa1 {[%emt 0:00:05]} d6 {[%emt 0:02:23]} 8. cxd6 {[%emt 0:15:33]} Qxd6 {[%emt 0:02:19]} 9. Qb3 {[%emt 0:00:42]} b5 {[%emt 0:12:50]} 10. e4 {[%emt 0:11:15]} Na6 {[%emt 0:11:17]} 11. Bc3 {[%emt 0:03:34]} Nf6 {[%emt 0:00:14]} 12. d3 {[%emt 0:11:26]} e5 {[%emt 0:04:17]} 13. Nf3 {[%emt 0:00:12]} Nd7 {[%emt 0:00:42]} 14. d4 {[%emt 0:05:28]} Nxb4 {[%emt 0:11:47]} 15. Be2 {[%emt 0:00:49]} Qe6 {[%emt 0:02:25]} 16. d5 {[%emt 0:09:07]} cxd5 {[%emt 0:00:50]} 17. Bxb4 {[%emt 0:28:31]} dxe4 {[%emt 0:01:34]} 18. Qxe6+ {[%emt 0:00:07]} fxe6 {[%emt 0:00:05]} 19. Bxf8 {[%emt 0:00:03]} exf3 {[%emt 0:00:12]} 20. Bxg7 {[%emt 0:00:03]} Rg8 {[%emt 0:00:40]} 21. gxf3 {[%emt 0:03:17]} Rxg7 {[%emt 0:00:10]} 22. Bxb5 {[%emt 0:00:02]} Kf8 {[%emt 0:04:00]} 23. Ke2 {[%emt 0:00:14]} Nb6 {[%emt 0:02:27]} 24. Rc1 {[%emt 0:00:34]} Bb7 {[%emt 0:00:57]} 25. Nd2 {[%emt 0:00:21]} Nd5 {[%emt 0:03:17]} 26. Kf1 {[%emt 0:00:06]} Nf4 {[%emt 0:02:50]} 27. Rc5 {[%emt 0:01:13]} Rg2 {[%emt 0:02:09]} 28. h4 {[%emt 0:01:33]} Rh2 {[%emt 0:01:25]} 29. Kg1 {[%emt 0:00:12]} Rxh4 {[%emt 0:04:02]} 30. Rxe5 {[%emt 0:00:01]} Rh6 {[%emt 0:00:28]} 31. Rc5 {[%emt 0:00:29]} Rg6+ {[%emt 0:00:35]} 32. Kf1 {[%emt 0:00:33]} h5 {[%emt 0:01:25]} 33. Rc4 {[%emt 0:00:13]} e5 {[%emt 0:01:33]} 34. Rc5 {[%emt 0:00:02]} Bd5 {[%emt 0:01:07]} 35. Bc4 {[%emt 0:00:58]} Rc6 {[%emt 0:00:32]} 36. Rxc6 {[%emt 0:00:09]} Bxc6 {[%emt 0:00:15]} 37. Kg1 {[%emt 0:00:34]} Kg7 {[%emt 0:00:17]} 1/2-1/2

[Event "USA-ch Juniors Open 2019"]
[Site "Saint Louis"]
[Date "2019.07.20"]
[Round "9.1"]
[White "Hilby, Craig"]
[Black "Vaidya, Atulya"]
[Result "1/2-1/2"]
[ECO "B12"]
[WhiteElo "2433"]
[BlackElo "2118"]
[Annotator "NA"]
[PlyCount "71"]
[EventDate "2019.07.09"]
[EventType "tourn"]
[EventCountry "USA"]
[SourceTitle "playchess.com"]
[Source "ChessBase"]
[SourceQuality "1"]
[TimeControl "40/5400+30:1800+30"]

1. e4 {[%emt 0:00:00]} c6 {[%emt 0:00:00]} 2. d4 {[%emt 0:00:00]} d5 {[%emt 0:00:00]} 3. e5 {[%emt 0:00:00]} Bf5 {[%emt 0:00:00]} 4. h4 {[%emt 0:00:00]} h5 {[%emt 0:00:00]} 5. Bd3 {[%emt 0:00:05]} Bxd3 {[%emt 0:01:44]} 6. Qxd3 {[%emt 0:00:34]} e6 {[%emt 0:00:05]} 7. Bg5 {[%emt 0:00:10]} Be7 {[%emt 0:03:29]} 8. Nf3 {[%emt 0:02:04]} Bxg5 {[%emt 0:00:40]} 9. hxg5 {[%emt 0:01:26]} Qb6 {[%emt 0:05:18]} 10. Nc3 {[%emt 0:06:17]} Ne7 {[%emt 0:05:33]} 11. O-O-O {[%emt 0:04:17]} Na6 {[%emt 0:08:56]} 12. g4 {[%emt 0:02:04]} Qa5 {[%emt 0:03:39]} 13. Rxh5 {[%emt 0:02:55]} Rf8 {[%emt 0:01:33]} 14. Kb1 {[%emt 0:01:37]} b5 {[%emt 0:03:18]} 15. Nd2 {[%emt 0:04:22]} Qb6 {[%emt 0:05:39]} 16. Nb3 {[%emt 0:01:32]} Nb4 {[%emt 0:12:23]} 17. Qe3 {[%emt 0:02:39]} a5 {[%emt 0:00:29]} 18. Nc5 {[%emt 0:01:47]} Na6 {[%emt 0:02:46]} 19. Nxa6 {[%emt 0:05:36]} Qxa6 {[%emt 0:03:48]} 20. Rdh1 {[%emt 0:02:05]} Kd7 {[%emt 0:01:13]} 21. Rh7 {[%emt 0:01:26]} Rg8 {[%emt 0:00:16]} 22. Ne2 {[%emt 0:00:33]} b4 {[%emt 0:07:23]} 23. Nc1 {[%emt 0:02:08]} c5 {[%emt 0:02:31]} 24. dxc5 {[%emt 0:04:37]} Qc4 {[%emt 0:00:40]} 25. Nd3 {[%emt 0:05:56]} a4 {[%emt 0:01:54]} 26. Qf4 {[%emt 0:03:43]} b3 {[%emt 0:00:07]} 27. Qxc4 {[%emt 0:03:41]} dxc4 {[%emt 0:00:10]} 28. Nf4 {[%emt 0:00:34]} Rgb8 {[%emt 0:02:33]} 29. a3 {[%emt 0:04:48]} bxc2+ {[%emt 0:01:54]} 30. Kxc2 {[%emt 0:00:10]} Rb5 {[%emt 0:00:04]} 31. Rd1+ {[%emt 0:02:29]} Nd5 {[%emt 0:01:23]} 32. Nxd5 {[%emt 0:02:20]} exd5 {[%emt 0:00:06]} 33. Rxg7 {[%emt 0:00:31]} Rab8 {[%emt 0:00:29]} 34. Rxd5+ {[%emt 0:03:52]} Ke6 {[%emt 0:00:17]} 35. Rd6+ {[%emt 0:00:22]} Kxe5 {[%emt 0:00:08]} 36. Rb6 {[%emt 0:00:14]} 1/2-1/2

[Event "USA-ch Juniors Open 2019"]
[Site "Saint Louis"]
[Date "2019.07.20"]
[Round "9.3"]
[White "Sheng, Joshua"]
[Black "Yu, Jennifer"]
[Result "1-0"]
[ECO "C24"]
[WhiteElo "2449"]
[BlackElo "2341"]
[Annotator "ChessBase"]
[PlyCount "83"]
[EventDate "2019.07.09"]
[EventType "tourn"]
[EventCountry "USA"]
[SourceTitle "playchess.com"]
[Source "ChessBase"]
[SourceQuality "1"]
[TimeControl "40/5400+30:1800+30"]

1. e4 {[%emt 0:00:00]} e5 {[%emt 0:00:00]} 2. Bc4 {[%emt 0:00:00]} Nf6 {[%emt 0:00:20]} 3. d3 {[%emt 0:00:00]} c6 {[%emt 0:01:32]} 4. Nf3 {[%emt 0:00:00]} d5 {[%emt 0:00:07]} 5. Bb3 {[%emt 0:00:00]} a5 {[%emt 0:07:05]} 6. a4 {[%emt 0:00:05]} Bd6 {[%emt 0:01:02]} 7. exd5 {[%emt 0:03:40]} Nxd5 {[%emt 0:00:13]} 8. O-O {[%emt 0:00:24]} O-O {[%emt 0:00:10]} 9. Re1 {[%emt 0:00:24]} Nd7 {[%emt 0:09:14]} 10. Bg5 {[%emt 0:19:50]} Qc7 {[%emt 0:12:45]} 11. Na3 {[%emt 0:02:53]} Bxa3 {[%emt 0:06:47]} 12. Rxa3 {[%emt 0:00:09]} f6 {[%emt 0:06:02]} 13. Bh4 {[%emt 0:01:01]} N7b6 {[%emt 0:08:24]} 14. d4 {[%emt 0:08:42]} Bg4 {[%emt 0:00:18]} 15. dxe5 {[%emt 0:04:45]} fxe5 {[%emt 0:00:15]} 16. Ba2 {[%emt 0:00:23]} Kh8 {[%emt 0:09:35]} 17. h3 {[%emt 0:04:40]} Bxf3 {[%emt 0:02:52]} 18. Rxf3 {[%emt 0:00:05]} Nxa4 {[%emt 0:03:05]} 19. Rxf8+ {[%emt 0:02:57]} Rxf8 {[%emt 0:00:08]} 20. c4 {[%emt 0:00:40]} Nxb2 {[%emt 0:09:59]} 21. Qc2 {[%emt 0:02:32]} Nxc4 {[%emt 0:01:20]} 22. Bxc4 {[%emt 0:00:31]} Nf4 {[%emt 0:02:48]} 23. Bg3 {[%emt 0:02:16]} Qd6 {[%emt 0:03:49]} 24. Ba2 {[%emt 0:13:17]} b5 {[%emt 0:02:31]} 25. Bb1 {[%emt 0:03:13]} g6 {[%emt 0:00:07]} 26. Qc3 {[%emt 0:00:59]} b4 {[%emt 0:01:47]} 27. Qa1 {[%emt 0:03:21]} Qd5 {[%emt 0:02:13]} 28. Be4 {[%emt 0:02:39]} Qb5 {[%emt 0:01:29]} 29. Bxc6 {[%emt 0:11:31]} Qxc6 {[%emt 0:00:06]} 30. Qxe5+ {[%emt 0:00:06]} Qf6 {[%emt 0:00:28]} 31. Bxf4 {[%emt 0:00:04]} Qxe5 {[%emt 0:00:09]} 32. Bxe5+ {[%emt 0:00:04]} Kg8 {[%emt 0:00:01]} 33. Rc1 {[%emt 0:04:58]} b3 {[%emt 0:03:07]} 34. Rc7 {[%emt 0:04:11]} Re8 {[%emt 0:01:05]} 35. f4 {[%emt 0:01:17]} a4 {[%emt 0:00:03]} 36. Rg7+ {[%emt 0:00:37]} Kf8 {[%emt 0:00:08]} 37. Rb7 {[%emt 0:00:07]} Rc8 {[%emt 0:02:52]} 38. Rxh7 {[%emt 0:01:49]} Rc1+ {[%emt 0:00:10]} 39. Kh2 {[%emt 0:00:01]} a3 {[%emt 0:01:14]} 40. Bd6+ {[%emt 0:00:00]} Kg8 {[%emt 0:00:00]} 41. Bxa3 {[%emt 0:01:55]} Ra1 {[%emt 0:03:30]} 42. Rg7+ {[%emt 0:00:17]} 1-0

[Event "USA-ch Juniors Open 2019"]
[Site "Saint Louis"]
[Date "2019.07.20"]
[Round "9.5"]
[White "Niemann, Hans Moke"]
[Black "Checa, Nicolas"]
[Result "1/2-1/2"]
[ECO "A06"]
[WhiteElo "2467"]
[BlackElo "2506"]
[Annotator "ChessBase"]
[PlyCount "60"]
[EventDate "2019.07.09"]
[EventType "tourn"]
[EventCountry "USA"]
[SourceTitle "playchess.com"]
[Source "ChessBase"]
[SourceQuality "1"]
[TimeControl "40/5400+30:1800+30"]

1. Nf3 {[%emt 0:01:13]} d5 {[%emt 0:00:00]} 2. e3 {[%emt 0:00:11]} Nf6 {[%emt 0:02:20]} 3. c4 {[%emt 0:00:17]} c6 {[%emt 0:02:33]} 4. Nc3 {[%emt 0:00:25]} a6 {[%emt 0:00:16]} 5. d4 {[%emt 0:02:01]} b5 {[%emt 0:03:58]} 6. cxd5 {[%emt 0:03:19]} cxd5 {[%emt 0:00:15]} 7. Bd3 {[%emt 0:01:31]} e6 {[%emt 0:05:40]} 8. a4 {[%emt 0:07:49]} b4 {[%emt 0:00:45]} 9. Ne2 {[%emt 0:00:55]} Nc6 {[%emt 0:02:41]} 10. b3 {[%emt 0:00:45]} Bd6 {[%emt 0:05:41]} 11. Bb2 {[%emt 0:00:25]} Bb7 {[%emt 0:00:07]} 12. O-O {[%emt 0:03:37]} O-O {[%emt 0:02:42]} 13. Ng3 {[%emt 0:04:00]} a5 {[%emt 0:04:39]} 14. Rc1 {[%emt 0:04:44]} Ne7 {[%emt 0:00:36]} 15. Ne5 {[%emt 0:01:17]} Ba6 {[%emt 0:01:26]} 16. Bxa6 {[%emt 0:01:50]} Rxa6 {[%emt 0:00:13]} 17. Qd3 {[%emt 0:00:16]} Ra8 {[%emt 0:08:10]} 18. Qb5 {[%emt 0:03:52]} Rb8 {[%emt 0:10:49]} 19. Qa6 {[%emt 0:00:11]} Ra8 {[%emt 0:00:06]} 20. Qb5 {[%emt 0:00:05]} Rb8 {[%emt 0:03:33]} 21. Qa6 {[%emt 0:00:03]} Qb6 {[%emt 0:00:05]} 22. Qxb6 {[%emt 0:00:16]} Rxb6 {[%emt 0:00:31]} 23. Rc2 {[%emt 0:00:06]} Rc8 {[%emt 0:00:04]} 24. Rxc8+ {[%emt 0:00:11]} Nxc8 {[%emt 0:00:03]} 25. Rc1 {[%emt 0:00:05]} Ne7 {[%emt 0:00:03]} 26. Nd3 {[%emt 0:00:23]} Kf8 {[%emt 0:06:17]} 27. f3 {[%emt 0:04:34]} Ke8 {[%emt 0:06:25]} 28. Kf2 {[%emt 0:00:23]} h5 {[%emt 0:03:19]} 29. Nf1 {[%emt 0:01:34]} Rc6 {[%emt 0:05:03]} 30. Rxc6 {[%emt 0:00:54]} Nxc6 {[%emt 0:00:04]} 1/2-1/2